fUSD/lending_fUSD_20240101
["ID","MTS","AMOUNT","RATE_DAILY","PERIOD"]
[309770220,1704109838959,-158.2,0.00033259,2]
[309770221,1704109838969,-287.33,0.00033324,2]
[309770222,1704109838978,-3692.64,0.00033488,2]
[309770223,1704109838989,-1458.32,0.00033488,2]
[309770224,1704109838999,-157.76,0.00033488,2]
[309770225,1704109839009,-279.45,0.00033488,2]
[309770226,1704109839019,-261.65,0.0003355,2]
[309770227,1704109839029,-261.65,0.00033726,2]
[309770228,1704109839039,-151.4,0.00033739,2]
[309770229,1704109839049,-261.65,0.00033903,2]
[309770230,1704109839058,-151.4,0.00033959,2]
[309770231,1704109839067,-157.76,0.00033967,2]
[309770232,1704109839076,-1000.0,0.00034,4]
[309770233,1704109839085,-261.65,0.00034079,2]
[309770234,1704109839094,-179.99,0.00034123,2]
[309770235,1704109839104,-2299.56,0.00034125,2]
[309770236,1704109839115,-155.21,0.00034148,2]
[309770237,1704109839126,-151.4,0.00034179,2]
[309770238,1704109839137,-261.65,0.00034256,2]
[309770239,1704109839147,-151.4,0.00034399,2]
[309770240,1704109839156,-261.65,0.00034433,2]
[309770241,1704109839165,-157.76,0.00034445,2]
[309770242,1704109839175,-279.45,0.00034467,2]
[309770243,1704109839184,-333.33333,0.00034598,2]
[309770244,1704109839193,-261.65,0.00034609,2]
[309770245,1704109839202,-151.4,0.00034618,2]
[309770246,1704109839212,-300.0,0.00034659,2]
[309770247,1704109839221,-333.33333,0.00034698,2]
[309770248,1704109839230,-261.65,0.00034786,2]
[309770249,1704109839239,-333.33333,0.00034798,2]
[309770250,1704109839249,-151.4,0.00034838,2]
[309770251,1704109839258,-333.33333,0.00034898,2]
[309770252,1704109839267,-157.76,0.00034923,2]
[309770253,1704109839278,-261.65,0.00034962,2]
[309770254,1704109839287,-157.41,0.00034988,2]
[309770255,1704109839296,-333.33333,0.00034998,2]
[309770256,1704109839305,-151.4,0.00035058,2]
[309770257,1704109839314,-333.33333,0.00035098,2]
[309770258,1704109839324,-155.32288667,0.0003513,4]
[309770259,1704109839333,-4555.69742065,0.0003513,4]
[309770260,1704109839342,-216.52681729,0.0003513,4]
[309770261,1704109839352,-1245.91605115,0.0003513,120]
[309770262,1704109839361,-200.52592493,0.0003513,4]
[309770263,1704109839370,-10498.98144309,0.0003513,4]
[309770264,1704109839380,-408.54992442,0.0003513,4]
[309770265,1704109839389,-155.0,0.0003513,4]
[309770266,1704109839398,-167.25123416,0.0003513,4]
[309770267,1704109839408,-299.02676355,0.0003513,4]
[309770268,1704109839418,-323.11985177,0.0003513,4]
[309770269,1704109839428,-155.35351659,0.0003513,4]
[309770270,1704109839437,-214.61659068,0.0003513,4]
[309770271,1704109839447,-261.65,0.00035139,2]
[309770272,1704109839457,-333.33333,0.00035198,2]
[309770273,1704109839466,-151.4,0.00035278,2]
[309770274,1704109839475,-333.33333,0.00035298,2]
[309770275,1704109839485,-261.65,0.00035315,2]
[309770276,1704109839494,-158.2,0.00035345,2]
[309770277,1704109839503,-333.33333,0.00035398,2]
[309770278,1704109839512,-157.76,0.00035402,2]
[309770279,1704109839521,-529.93229211,0.00035405,4]
[309770280,1704109839531,-366.3002817,0.00035406,2]
[309770281,1704109839540,-383.09950652,0.00035407,4]
[309770282,1704109839550,-279.45,0.00035445,2]
[309770283,1704109839559,-261.65,0.00035492,2]
[309770284,1704109839568,-154.1,0.00035492,2]
[309770285,1704109839577,-151.4,0.00035497,2]
[309770286,1704109839586,-333.33333,0.00035498,2]
[309770287,1704109839596,-55555.0,0.00035516,3]
[309770288,1704109839605,-287.33,0.00035588,2]
[309770289,1704109839614,-333.33333,0.00035598,2]
[309770290,1704109839623,-52237.2,0.000356,2]
[309770291,1704109839633,-4131.081686,0.000356,4]
[309770292,1704109839643,-252.05298493,0.00035606,2]
[309770293,1704109839654,-300.0,0.00035611,2]
[309770294,1704109839664,-310.0,0.00035615,2]
[309770295,1704109839673,-378.05,0.00035615,2]
[309770296,1704109839682,-378.05,0.00035615,2]
[309770297,1704109839691,-378.05,0.00035615,2]
[309770298,1704109839700,-378.05,0.00035615,2]
[309770299,1704109839710,-378.05,0.00035615,2]
[309770300,1704109839719,-378.05,0.00035615,2]
[309770301,1704109839729,-378.05,0.00035615,2]
[309770302,1704109839738,-378.05,0.00035615,2]
[309770303,1704109839747,-378.05,0.00035615,2]
[309770304,1704109839756,-618.64,0.00035615,2]
[309770305,1704109839765,-526.07996468,0.00035616,2]
[309770306,1704109839775,-506.36212207,0.00035616,2]
[309770307,1704109839785,-502.74543391,0.00035616,2]
[309770308,1704109839794,-503.43630887,0.00035616,2]
[309770309,1704109839803,-510.51055013,0.00035616,2]
[309770310,1704109839812,-531.33623051,0.00035616,2]
[309770311,1704109839821,-523.32546653,0.00035616,2]
[309770312,1704109839830,-594.19711442,0.00035616,2]
[309770313,1704109839839,-526.17348477,0.00035616,2]
[309770314,1704109839848,-503.05805642,0.00035616,2]
[309770315,1704109839858,-519.89406527,0.00035616,2]
[309770316,1704109839866,-521.85787997,0.00035616,2]
[309770317,1704109839876,-500.0,0.00035616,2]
[309770318,1704109839884,-432.92666658,0.00035616,2]
[309770319,1704109839894,-514.17501745,0.00035616,2]
[309770320,1704109839903,-505.73324911,0.00035616,2]
[309770321,1704109839912,-603.29340397,0.00035616,2]
[309770322,1704109839921,-264.9835037,0.00035616,2]
[309770323,1704109839931,-522.14777066,0.00035616,2]
[309770324,1704109839940,-477.46371896,0.00035616,2]
[309770325,1704109839950,-500.0,0.00035616,2]
[309770326,1704109839959,-515.19314243,0.00035616,2]
[309770327,1704109839969,-508.2115112,0.00035616,2]
[309770328,1704109839978,-500.0,0.00035616,2]
[309770329,1704109839987,-500.0,0.00035616,2]
[309770330,1704109839996,-513.89608963,0.00035616,2]
[309770331,1704109840006,-500.0,0.00035616,2]
[309770332,1704109840015,-372.4234725,0.00035616,2]
[309770333,1704109840025,-535.60714572,0.00035616,2]
[309770334,1704109840035,-417.31943213,0.00035616,2]
[309770335,1704109840045,-416.83570492,0.00035616,2]
[309770336,1704109840054,-500.0,0.00035616,2]
[309770337,1704109840063,-516.09338916,0.00035616,2]
[309770338,1704109840072,-500.0,0.00035616,2]
[309770340,1704109840082,-500.0,0.00035616,2]
[309770341,1704109840091,-617.49476481,0.00035616,2]
[309770342,1704109840101,-530.99099298,0.00035616,2]
[309770343,1704109840110,-500.0,0.00035616,2]
[309770345,1704109840120,-500.0,0.00035616,2]
[309770347,1704109840130,-500.0,0.00035616,2]
[309770350,1704109840139,-558.11378468,0.00035616,2]
[309770352,1704109840148,-500.0,0.00035616,2]
[309770354,1704109840157,-530.40403982,0.00035616,2]
[309770356,1704109840168,-511.30426412,0.00035616,2]
[309770357,1704109840177,-554.12631545,0.00035616,2]
[309770359,1704109840186,-528.57438736,0.00035616,2]
[309770361,1704109840198,-521.77543262,0.00035616,2]
[309770363,1704109840207,-500.0,0.00035616,2]
[309770364,1704109840217,-500.0,0.00035616,2]
[309770366,1704109840227,-500.0,0.00035616,2]
[309770367,1704109840236,-519.09601854,0.00035616,2]
[309770368,1704109840246,-500.0,0.00035616,2]
[309770369,1704109840255,-554.78308726,0.00035616,2]
[309770370,1704109840265,-505.87027302,0.00035616,2]
[309770371,1704109840275,-605.49694541,0.00035616,2]
[309770372,1704109840284,-560.68370385,0.00035616,2]
[309770373,1704109840294,-521.01719498,0.00035616,2]
[309770374,1704109840305,-551.15789808,0.00035616,2]
[309770375,1704109840316,-500.0,0.00035616,2]
[309770376,1704109840326,-152.93725595,0.00035616,2]
[309770377,1704109840336,-500.0,0.00035616,2]
[309770378,1704109840345,-522.16918706,0.00035616,2]
[309770379,1704109840354,-522.3438948,0.00035616,2]
[309770380,1704109840363,-542.67707064,0.00035616,2]
[309770381,1704109840373,-500.0,0.00035616,2]
[309770382,1704109840382,-514.47747146,0.00035616,2]
[309770383,1704109840391,-500.0,0.00035616,2]
[309770384,1704109840401,-542.95650124,0.00035616,2]
[309770385,1704109840409,-544.41763406,0.00035616,2]
[309770386,1704109840418,-500.0,0.00035616,2]
[309770387,1704109840428,-530.56846388,0.00035616,2]
[309770388,1704109840437,-510.09846255,0.00035616,2]
[309770389,1704109840446,-500.0,0.00035616,2]
[309770390,1704109840455,-500.0,0.00035616,2]
[309770391,1704109840465,-500.0,0.00035616,2]
[309770392,1704109840474,-519.85880462,0.00035616,2]
[309770393,1704109840484,-500.0,0.00035616,2]
[309770394,1704109840493,-546.77236656,0.00035616,2]
[309770395,1704109840503,-526.89270636,0.00035616,2]
[309770396,1704109840512,-557.44762392,0.00035616,2]
[309770397,1704109840521,-506.93034544,0.00035616,2]
[309770398,1704109840532,-538.64675219,0.00035616,2]
[309770399,1704109840541,-500.0,0.00035616,2]
[309770400,1704109840550,-500.0,0.00035616,2]
[309770401,1704109840560,-586.01039985,0.00035616,2]
[309770402,1704109840570,-500.0,0.00035616,2]
[309770403,1704109840579,-524.38531002,0.00035616,2]
[309770404,1704109840589,-500.0,0.00035616,2]
[309770405,1704109840598,-506.37318622,0.00035616,2]
[309770406,1704109840607,-500.0,0.00035616,2]
[309770407,1704109840617,-553.99413537,0.00035616,2]
[309770408,1704109840626,-500.0,0.00035616,2]
[309770409,1704109840635,-645.8909463,0.00035616,2]
[309770410,1704109840648,-614.24531622,0.00035616,2]
[309770411,1704109840657,-465.45380841,0.00035616,2]
[309770412,1704109840666,-646.31226804,0.00035616,2]
[309770413,1704109840676,-500.0,0.00035616,2]
[309770414,1704109840685,-521.52836729,0.00035616,2]
[309770415,1704109840694,-505.89464232,0.00035616,2]
[309770416,1704109840704,-500.0,0.00035616,2]
[309770417,1704109840713,-545.99375151,0.00035616,2]
[309770418,1704109840722,-500.0,0.00035616,2]
[309770419,1704109840731,-500.0,0.00035616,2]
[309770420,1704109840740,-500.0,0.00035616,2]
[309770421,1704109840750,-500.0,0.00035616,2]
[309770422,1704109840759,-500.0,0.00035616,2]
[309770423,1704109840768,-500.0,0.00035616,2]
[309770424,1704109840777,-500.0,0.00035616,2]
[309770425,1704109840786,-500.0,0.00035616,2]
[309770426,1704109840796,-510.97228104,0.00035616,2]
[309770427,1704109840808,-500.0,0.00035616,2]
[309770428,1704109840818,-500.0,0.00035616,2]
[309770429,1704109840830,-500.0,0.00035616,2]
[309770430,1704109840840,-500.0,0.00035616,2]
[309770431,1704109840850,-508.93554754,0.00035616,2]
[309770432,1704109840861,-500.0,0.00035616,2]
[309770433,1704109840870,-500.0,0.00035616,2]
[309770434,1704109840879,-413.62817479,0.00035616,2]
[309770435,1704109840889,-504.34230464,0.00035616,2]
[309770436,1704109840898,-559.88886222,0.00035616,2]
[309770437,1704109840907,-500.0,0.00035616,2]
[309770438,1704109840916,-500.0,0.00035616,2]
[309770439,1704109840925,-171.65755496,0.00035616,2]
[309770440,1704109840934,-500.0,0.00035616,2]
[309770441,1704109840943,-500.0,0.00035616,2]
[309770442,1704109840952,-1036.04353025,0.00035616,2]
[309770443,1704109840961,-500.0,0.00035616,2]
[309770444,1704109840970,-500.0,0.00035616,2]
[309770445,1704109840979,-500.0,0.00035616,2]
[309770446,1704109840989,-500.0,0.00035616,2]
[309770447,1704109840998,-500.0,0.00035616,2]
[309770448,1704109841007,-524.75627768,0.00035616,2]
[309770449,1704109841016,-534.85518355,0.00035616,2]
[309770450,1704109841026,-500.0,0.00035616,2]
[309770451,1704109841035,-500.0,0.00035616,2]
[309770452,1704109841044,-500.0,0.00035616,2]
[309770453,1704109841054,-500.0,0.00035616,2]
[309770454,1704109841063,-170.39118161,0.00035616,2]
[309770455,1704109841073,-584.62735964,0.00035616,2]
[309770456,1704109841082,-500.0,0.00035616,2]
[309770457,1704109841091,-500.0,0.00035616,2]
[309770458,1704109841101,-500.0,0.00035616,2]
[309770459,1704109841112,-2000.0,0.00035616,2]
[309770460,1704109841121,-2000.0,0.00035616,2]
[309770461,1704109841130,-1557.42450609,0.00035616,2]
[309770462,1704109841156,-442.57549391,0.00035616,2]
[309770463,1704109841165,-2000.0,0.00035616,2]
[309770464,1704109841174,-500.0,0.00035616,2]
[309770465,1704109841183,-2000.0,0.00035616,2]
[309770466,1704109841193,-2000.0,0.00035616,2]
[309770467,1704109841202,-2000.0,0.00035616,2]
[309770468,1704109841211,-2000.0,0.00035616,2]
[309770469,1704109841221,-2000.0,0.00035616,2]
[309770470,1704109841230,-500.0,0.00035616,2]
[309770471,1704109841241,-2000.0,0.00035616,2]
[309770472,1704109841250,-2000.0,0.00035616,2]
[309770473,1704109841260,-2000.0,0.00035616,2]
[309770474,1704109841270,-2000.0,0.00035616,2]
[309770475,1704109841279,-2000.0,0.00035616,2]
[309770476,1704109841289,-2000.0,0.00035616,2]
[309770477,1704109841298,-2000.0,0.00035616,2]
[309770478,1704109841307,-2000.0,0.00035616,2]
[309770479,1704109841317,-2000.0,0.00035616,2]
[309770480,1704109841326,-2000.0,0.00035616,2]
[309770481,1704109841335,-648.70794396,0.00035616,2]
[309770482,1704109841345,-624.72624621,0.00035616,2]
[309770483,1704109841355,-500.0,0.00035616,2]
[309770484,1704109841365,-500.0,0.00035616,2]
[309770485,1704109841375,-500.0,0.00035616,2]
[309770486,1704109841385,-500.0,0.00035616,2]
[309770487,1704109841394,-520.62281906,0.00035616,2]
[309770488,1704109841404,-500.0,0.00035616,2]
[309770489,1704109841413,-500.0,0.00035616,2]
[309770490,1704109841422,-500.0,0.00035616,2]
[309770491,1704109841432,-500.0,0.00035616,2]
[309770492,1704109841442,-500.0,0.00035616,2]
[309770493,1704109841451,-500.0,0.00035616,2]
[309770494,1704109841461,-500.0,0.00035616,2]
[309770495,1704109841470,-500.0,0.00035616,2]
[309770496,1704109841480,-500.0,0.00035616,2]
[309770497,1704109841489,-565.76339069,0.00035616,2]
[309770498,1704109841499,-500.0,0.00035616,2]
[309770499,1704109841509,-573.85278488,0.00035616,2]
[309770500,1704109841518,-500.0,0.00035616,2]
[309770501,1704109841536,-500.0,0.00035616,2]
[309770502,1704109841554,-500.0,0.00035616,2]
[309770503,1704109841565,-500.0,0.00035616,2]
[309770504,1704109841575,-500.0,0.00035616,2]
[309770505,1704109841585,-545.62909949,0.00035616,2]
[309770506,1704109841596,-500.0,0.00035616,2]
[309770507,1704109841605,-518.6850489,0.00035616,2]
[309770508,1704109841615,-500.0,0.00035616,2]
[309770509,1704109841625,-183.77479111,0.00035616,2]
[309770510,1704109841636,-500.0,0.00035616,2]
[309770511,1704109841646,-500.0,0.00035616,2]
[309770512,1704109841655,-525.7834104,0.00035616,2]
[309770513,1704109841665,-500.0,0.00035616,2]
[309770514,1704109841674,-500.0,0.00035616,2]
[309770515,1704109841684,-500.0,0.00035616,2]
[309770516,1704109841693,-500.0,0.00035616,2]
[309770517,1704109841703,-500.0,0.00035616,2]
[309770518,1704109841712,-500.0,0.00035616,2]
[309770519,1704109841721,-234.44815656,0.00035616,2]
[309770520,1704109841731,-500.0,0.00035616,2]
[309770521,1704109841740,-573.13445901,0.00035616,2]
[309770522,1704109841750,-500.0,0.00035616,2]
[309770523,1704109841759,-516.08115071,0.00035616,2]
[309770524,1704109841769,-500.0,0.00035616,2]
[309770525,1704109841780,-500.0,0.00035616,2]
[309770526,1704109841790,-512.27316491,0.00035616,2]
[309770527,1704109841799,-500.0,0.00035616,2]
[309770528,1704109841809,-500.0,0.00035616,2]
[309770529,1704109841822,-500.0,0.00035616,2]
[309770530,1704109841831,-500.0,0.00035616,2]
[309770531,1704109841841,-500.0,0.00035616,2]
[309770532,1704109841850,-500.0,0.00035616,2]
[309770533,1704109841859,-500.0,0.00035616,2]
[309770534,1704109841869,-500.0,0.00035616,2]
[309770535,1704109841878,-520.0844456,0.00035616,2]
[309770536,1704109841888,-283.4778163,0.00035616,2]
[309770537,1704109841897,-500.0,0.00035616,2]
[309770538,1704109841906,-500.0,0.00035616,2]
[309770539,1704109841915,-500.0,0.00035616,2]
[309770540,1704109841925,-520.88945087,0.00035616,2]
[309770541,1704109841934,-500.0,0.00035616,2]
[309770542,1704109841944,-500.0,0.00035616,2]
[309770543,1704109841953,-500.0,0.00035616,2]
[309770544,1704109841962,-500.0,0.00035616,2]
[309770545,1704109841972,-557.14041933,0.00035616,2]
[309770546,1704109841981,-500.0,0.00035616,2]
[309770547,1704109841991,-500.0,0.00035616,2]
[309770548,1704109842000,-500.0,0.00035616,2]
[309770549,1704109842009,-500.0,0.00035616,2]
[309770550,1704109842019,-500.0,0.00035616,2]
[309770551,1704109842029,-500.0,0.00035616,2]
[309770552,1704109842038,-500.0,0.00035616,2]
[309770553,1704109842047,-500.0,0.00035616,2]
[309770554,1704109842057,-502.98286587,0.00035616,2]
[309770555,1704109842066,-500.0,0.00035616,2]
[309770556,1704109842077,-500.0,0.00035616,2]
[309770557,1704109842089,-500.0,0.00035616,2]
[309770558,1704109842098,-515.53007755,0.00035616,2]
[309770559,1704109842107,-500.0,0.00035616,2]
[309770560,1704109842117,-500.0,0.00035616,2]
[309770561,1704109842307,-500.0,0.00035616,2]
[309770562,1704109842317,-500.0,0.00035616,2]
[309770563,1704109842327,-500.0,0.00035616,2]
[309770564,1704109842336,-549.54274108,0.00035616,2]
[309770565,1704109842346,-500.0,0.00035616,2]
[309770566,1704109842355,-500.0,0.00035616,2]
[309770567,1704109842364,-500.0,0.00035616,2]
[309770568,1704109842374,-500.0,0.00035616,2]
[309770569,1704109842383,-500.0,0.00035616,2]
[309770570,1704109842392,-500.0,0.00035616,2]
[309770571,1704109842402,-500.0,0.00035616,2]
[309770572,1704109842411,-500.0,0.00035616,2]
[309770573,1704109842421,-500.0,0.00035616,2]
[309770574,1704109842430,-500.0,0.00035616,2]
[309770575,1704109842440,-500.0,0.00035616,2]
[309770576,1704109842449,-539.10949711,0.00035616,2]
[309770577,1704109842458,-500.0,0.00035616,2]
[309770578,1704109842467,-576.42222702,0.00035616,2]
[309770579,1704109842476,-546.41248883,0.00035616,2]
[309770580,1704109842486,-500.0,0.00035616,2]
[309770581,1704109842495,-558.67445278,0.00035616,2]
[309770582,1704109842505,-500.17074379,0.00035616,2]
[309770583,1704109842515,-500.0,0.00035616,7]
[309770584,1704109842524,-500.0,0.00035616,2]
[309770586,1704109842533,-572.73196346,0.00035616,2]
[309770588,1704109842542,-500.0,0.00035616,2]
[309770590,1704109842551,-500.0,0.00035616,2]
[309770591,1704109842562,-500.0,0.00035616,2]
[309770592,1704109842571,-528.37146751,0.00035616,2]
[309770593,1704109842580,-523.54761625,0.00035616,2]
[309770594,1704109842589,-500.0,0.00035616,2]
[309770595,1704109842599,-556.6566071,0.00035616,2]
[309770596,1704109842608,-526.43299995,0.00035616,2]
[309770597,1704109842617,-522.20799173,0.00035616,2]
[309770598,1704109842626,-500.0,0.00035616,2]
[309770599,1704109842636,-500.0,0.00035616,2]
[309770600,1704109842645,-513.66597316,0.00035616,2]
[309770601,1704109842654,-557.54116449,0.00035616,2]
[309770602,1704109842663,-557.12151125,0.00035616,2]
[309770603,1704109842672,-537.90047114,0.00035616,2]
[309770604,1704109842682,-720.31,0.00035616,2]
[309770605,1704109842691,-540.90070485,0.00035616,2]
[309770606,1704109842700,-571.18836671,0.00035616,2]
[309770607,1704109842710,-500.0,0.00035616,2]
[309770608,1704109842719,-540.59903621,0.00035616,2]
[309770609,1704109842728,-514.50330271,0.00035616,2]
[309770610,1704109842737,-500.0,0.00035616,2]
[309770611,1704109842746,-617.79990294,0.00035616,2]
[309770612,1704109842755,-566.28,0.00035616,2]
[309770613,1704109842764,-517.23599671,0.00035616,2]
[309770614,1704109842773,-536.52087985,0.00035616,2]
[309770615,1704109842783,-500.0,0.00035616,2]
[309770616,1704109842792,-500.0,0.00035616,2]
[309770617,1704109842801,-421.87628552,0.00035616,2]
[309770618,1704109842810,-500.0,0.00035616,2]
[309770619,1704109842822,-527.72249161,0.00035616,2]
[309770620,1704109842831,-500.0,0.00035616,2]
[309770621,1704109842841,-500.0,0.00035616,2]
[309770622,1704109842850,-528.89848301,0.00035616,2]
[309770623,1704109842859,-186.75918848,0.00035616,2]
[309770624,1704109842868,-500.0,0.00035616,2]
[309770625,1704109842877,-500.0,0.00035616,2]
[309770626,1704109842886,-526.25911398,0.00035616,2]
[309770627,1704109842896,-523.54076553,0.00035616,2]
[309770628,1704109842905,-500.0,0.00035616,2]
[309770629,1704109842914,-575.81194359,0.00035616,2]
[309770630,1704109842923,-500.0,0.00035616,2]
[309770631,1704109842932,-500.0,0.00035616,2]
[309770632,1704109842941,-500.0,0.00035616,2]
[309770633,1704109842951,-536.91133569,0.00035616,2]
[309770634,1704109842959,-97.22885526,0.00035616,2]
[309770635,1704109842989,-444.45580429,0.00035616,2]
[309770636,1704109842998,-500.0,0.00035616,2]
[309770637,1704109843007,-193.43699379,0.00035616,2]
[309770638,1704109843016,-410.33282472,0.00035616,2]
[309770639,1704109843028,-115.24429705,0.00035616,2]
[309770640,1704109843037,-550.12,0.00035616,2]
[309770641,1704109843046,-583.67424815,0.00035616,2]
[309770642,1704109843055,-500.0,0.00035616,2]
[309770643,1704109843064,-500.0,0.00035616,2]
[309770644,1704109843073,-500.0,0.00035616,2]
[309770645,1704109843082,-499.99871726,0.00035616,2]
[309770646,1704109843093,-567.16225712,0.00035616,2]
[309770647,1704109843102,-500.0,0.00035616,2]
[309770648,1704109843112,-500.0,0.00035616,2]
[309770649,1704109843121,-534.34564854,0.00035616,2]
[309770650,1704109843130,-522.27342318,0.00035616,2]
[309770651,1704109843139,-500.0,0.00035616,2]
[309770652,1704109843149,-524.40610823,0.00035616,2]
[309770653,1704109843159,-523.64875577,0.00035616,2]
[309770654,1704109843167,-500.0,0.00035616,2]
[309770655,1704109843177,-500.0,0.00035616,2]
[309770656,1704109843186,-552.52225266,0.00035616,2]
[309770657,1704109843195,-500.0,0.00035616,2]
[309770658,1704109843205,-150.0,0.00035616,2]
[309770659,1704109843216,-500.0,0.00035616,2]
[309770660,1704109843225,-500.0,0.00035616,2]
[309770661,1704109843235,-529.52960803,0.00035616,2]
[309770662,1704109843246,-523.85658836,0.00035616,2]
[309770663,1704109843255,-500.0,0.00035616,2]
[309770664,1704109843265,-540.81595418,0.00035616,2]
[309770665,1704109843276,-500.0,0.00035616,2]
[309770666,1704109843287,-532.38174069,0.00035616,2]
[309770667,1704109843296,-583.78481006,0.00035616,2]
[309770668,1704109843306,-500.0,0.00035616,2]
[309770669,1704109843316,-500.0,0.00035616,2]
[309770670,1704109843326,-284.83736242,0.00035616,2]
[309770671,1704109843336,-500.0,0.00035616,2]
[309770672,1704109843345,-562.12616163,0.00035616,2]
[309770673,1704109843356,-482.30169783,0.00035616,2]
[309770674,1704109843365,-500.0,0.00035616,2]
[309770675,1704109843376,-549.37787505,0.00035616,2]
[309770676,1704109843386,-500.0,0.00035616,2]
[309770677,1704109843395,-533.76601434,0.00035616,2]
[309770678,1704109843404,-573.09447605,0.00035616,2]
[309770679,1704109843414,-534.02453757,0.00035616,2]
[309770680,1704109843423,-534.71416906,0.00035616,2]
[309770681,1704109843432,-523.66687505,0.00035616,2]
[309770682,1704109843442,-764.22,0.00035616,2]
[309770683,1704109843451,-566.40191425,0.00035616,2]
[309770684,1704109843460,-500.0,0.00035616,2]
[309770685,1704109843470,-500.0,0.00035616,2]
[309770686,1704109843479,-540.52557339,0.00035616,2]
[309770687,1704109843488,-529.42748881,0.00035616,2]
[309770688,1704109843498,-624.43956811,0.00035616,2]
[309770689,1704109843507,-573.54048105,0.00035616,2]
[309770690,1704109843519,-500.0,0.00035616,2]
[309770691,1704109843528,-562.31603936,0.00035616,2]
[309770692,1704109843537,-550.36241508,0.00035616,2]
[309770693,1704109843547,-620.72360774,0.00035616,2]
[309770694,1704109843556,-536.23002011,0.00035616,2]
[309770695,1704109843567,-353.61674592,0.00035616,2]
[309770696,1704109843577,-521.86990913,0.00035616,2]
[309770697,1704109843586,-551.8884838,0.00035616,2]
[309770698,1704109843596,-500.0,0.00035616,2]
[309770699,1704109843605,-500.0,0.00035616,2]
[309770700,1704109843615,-500.0,0.00035616,2]
[309770701,1704109843625,-317.25845691,0.00035616,2]
[309770702,1704109843637,-530.73064217,0.00035616,2]
[309770703,1704109843647,-500.0,0.00035616,2]
[309770704,1704109843658,-500.0,0.00035616,2]
[309770705,1704109843668,-500.0,0.00035616,2]
[309770706,1704109843678,-500.0,0.00035616,2]
[309770707,1704109843687,-564.49679643,0.00035616,2]
[309770708,1704109843696,-523.89827076,0.00035616,2]
[309770709,1704109843705,-517.84091065,0.00035616,2]
[309770710,1704109843714,-500.0,0.00035616,2]
[309770711,1704109843723,-500.0,0.00035616,2]
[309770712,1704109843732,-512.33604513,0.00035616,2]
[309770713,1704109843741,-500.0,0.00035616,2]
[309770714,1704109843751,-540.34654563,0.00035616,2]
[309770715,1704109843760,-561.687118,0.00035616,2]
[309770716,1704109843769,-527.10231145,0.00035616,2]
[309770717,1704109843778,-547.12544349,0.00035616,2]
[309770718,1704109843788,-627.24794744,0.00035616,2]
[309770719,1704109843798,-500.0,0.00035616,2]
[309770720,1704109843807,-500.0,0.00035616,2]
[309770721,1704109843816,-509.51028363,0.00035616,2]
[309770722,1704109843825,-533.73959062,0.00035616,2]
[309770723,1704109843834,-431.60460181,0.00035616,2]
[309770724,1704109843843,-500.0,0.00035616,2]
[309770725,1704109843853,-500.0,0.00035616,2]
[309770726,1704109843862,-549.01638435,0.00035616,2]
[309770727,1704109843870,-524.16217745,0.00035616,2]
[309770728,1704109843880,-542.13857413,0.00035616,2]
[309770729,1704109843889,-566.49702523,0.00035616,2]
[309770730,1704109843899,-500.0,0.00035616,2]
[309770731,1704109843907,-500.0,0.00035616,2]
[309770732,1704109843917,-564.69683204,0.00035616,2]
[309770733,1704109843926,-500.0,0.00035616,2]
[309770734,1704109843935,-197.07658708,0.00035616,2]